Workbook

Sheet паспорт
A1: ПАТ "УКРТРАНСГАЗ" | G1: ПАСПОРТ ФІЗИКО-ХІМІЧНИХ ПОКАЗНИКІВ ПРИРОДНОГО ГАЗУ № 689
A2: Філія "УМГ "ХАРКІВТРАНСГАЗ" | G2: переданого Сєвєродонецьким ЛВУМГ та прийнятого ПрАТ"АЗОТ",ПАТ "Луганськгаз"
A3: Сєвєродонецьке ЛВУМГ | G3: Маршрут № 689
A4: Вимірювальна хіміко-аналітична лабораторія
A5: Свідоцтво № РЬ089/2014 чинно до 06.06.2017 р. | K5: по газопроводу "Луганськ-Лисичанськ-Рубіжне" | V5: за період з | X5: 01.02.2017 р. | Z5: по | AA5: 28.02.2017 р.
A7: Число місяця | B7: Компонентний склад, мол. % | N7: Фізико-хімічні показники газу обчислені на основі компонентного складу, 101,325 кПа | X7: Температура точки роси за вологою (Р = 3.92 МПа), °С | Y7: Температура точки роси за вуглеводнями, °С | Z7: Вміст сірководню, г/м3 | AA7: Вміст меркаптанової сірки, г/м3 | AB7: Вміст механічних домішок, г/м3
N8: Густина абсолютна, кг/м3,при 20 °С, | O8: Температура вимірювання/згоряння при 20/25°С
B9: метан, С1 | C9: етан, С2 | D9: пропан, С3 | E9: ізо-бутан, і-С4 | F9: н-бутан, н-С4 | G9: нео-пентан, нео-С5 | H9: ізо-пентан, і-С5 | I9: н-пентан, н-С5 | J9: гексани та вищі, С6+ | K9: кисень, О2 | L9: азот, N2 | M9: діоксид вуглецю, CО2 | O9: Теплота згоряння нижча | R9: Теплота згоряння вища | U9: Число Воббе вище
O10: ккал/м³ | P10: МДж/м³ | Q10: кВт⋅год/м³ | R10: ккал/м³ | S10: МДж/м³ | T10: кВт⋅год/м³ | U10: ккал/м³ | V10: МДж/м³ | W10: кВт⋅год/м³
A11: 1 | O11: =P11*238.8459 -> 8157.327907 | P11: 34.1531 | Q11: =P11/3.6 -> 9.486972222 | R11: =S11*238.8459 -> 9037.37951 | S11: 37.8377 | T11: =S11/3.6 -> 10.51047222 | U11: =V11/0.0041868 -> 11702.4219 | V11: 48.9957 | W11: =V11/3.6 -> 13.60991667 | AC11: =SUM(B11:M11)+$K$42+$N$42 -> 0
A12: 2 | O12: =P12*238.8459 -> 8157.327907 | P12: 34.1531 | Q12: =P12/3.6 -> 9.486972222 | R12: =S12*238.8459 -> 9037.37951 | S12: 37.8377 | T12: =S12/3.6 -> 10.51047222 | U12: =V12/0.0041868 -> 11702.4219 | V12: 48.9957 | W12: =V12/3.6 -> 13.60991667 | AC12: 0
A13: 3 | B13: 93.26 | C13: 3.2989 | D13: 0.8106 | E13: 0.0803 | F13: 0.1003 | G13: 0.0047 | H13: 0.0194 | I13: 0.0169 | J13: 0.045 | K13: 0.0128 | L13: 2.1237 | M13: 0.2274 | N13: 0.7158 | O13: =P13*238.8459 -> 8159.644713 | P13: 34.1628 | Q13: =P13/3.6 -> 9.489666667 | R13: =S13*238.8459 -> 9040.436738 | S13: 37.8505 | T13: =S13/3.6 -> 10.51402778 | U13: =V13/0.0041868 -> 11726.76029 | V13: 49.0976 | W13: =V13/3.6 -> 13.63822222 | AC13: 100 | AD13: =IF(AC13=100,"ОК"," ") -> ОК
A14: 4 | O14: =P14*238.8459 -> 8159.644713 | P14: 34.1628 | Q14: =P14/3.6 -> 9.489666667 | R14: =S14*238.8459 -> 9040.436738 | S14: 37.8505 | T14: =S14/3.6 -> 10.51402778 | U14: =V14/0.0041868 -> 11726.76029 | V14: 49.0976 | W14: =V14/3.6 -> 13.63822222 | AC14: 0 | AD14: =IF(AC14=100,"ОК"," ") -> 
A15: 5 | O15: 8159.644713 | P15: 34.1628 | Q15: 9.489666667 | R15: 9040.436738 | S15: 37.8505 | T15: 10.51402778 | U15: 11726.76029 | V15: 49.0976 | W15: 13.63822222 | AC15: 0
A16: 6 | O16: 8159.644713 | P16: 34.1628 | Q16: 9.489666667 | R16: 9040.436738 | S16: 37.8505 | T16: 10.51402778 | U16: 11726.76029 | V16: 49.0976 | W16: 13.63822222 | AC16: 0
A17: 7 | O17: 8159.644713 | P17: 34.1628 | Q17: 9.489666667 | R17: 9040.436738 | S17: 37.8505 | T17: 10.51402778 | U17: 11726.76029 | V17: 49.0976 | W17: 13.63822222 | AC17: 0
A18: 8 | O18: 8159.644713 | P18: 34.1628 | Q18: 9.489666667 | R18: 9040.436738 | S18: 37.8505 | T18: 10.51402778 | U18: 11726.76029 | V18: 49.0976 | W18: 13.63822222 | AC18: 0
A19: 9 | B19: 93.0793 | C19: 3.3883 | D19: 0.8326 | E19: 0.0822 | F19: 0.104 | G19: 0.0024 | H19: 0.0198 | I19: 0.0175 | J19: 0.0264 | K19: 0.0116 | L19: 2.1386 | M19: 0.2973 | N19: 0.717 | O19: =P19*238.8459 -> 8156.276985 | P19: 34.1487 | Q19: =P19/3.6 -> 9.48575 | R19: =S19*238.8459 -> 9036.591319 | S19: 37.8344 | T19: =S19/3.6 -> 10.50955556 | U19: =V19/0.0041868 -> 11712.0235 | V19: 49.0359 | W19: =V19/3.6 -> 13.62108333 | AC19: 100 | AD19: ОК
A20: 10 | O20: =P20*238.8459 -> 8156.276985 | P20: 34.1487 | Q20: =P20/3.6 -> 9.48575 | R20: =S20*238.8459 -> 9036.591319 | S20: 37.8344 | T20: =S20/3.6 -> 10.50955556 | U20: =V20/0.0041868 -> 11712.0235 | V20: 49.0359 | W20: =V20/3.6 -> 13.62108333 | AC20: 0
A21: 11 | O21: 8156.276985 | P21: 34.1487 | Q21: 9.48575 | R21: 9036.591319 | S21: 37.8344 | T21: 10.50955556 | U21: 11712.0235 | V21: 49.0359 | W21: 13.62108333 | AC21: 0
A22: 12 | O22: 8156.276985 | P22: 34.1487 | Q22: 9.48575 | R22: 9036.591319 | S22: 37.8344 | T22: 10.50955556 | U22: 11712.0235 | V22: 49.0359 | W22: 13.62108333 | AC22: 0
A23: 13 | O23: 8156.276985 | P23: 34.1487 | Q23: 9.48575 | R23: 9036.591319 | S23: 37.8344 | T23: 10.50955556 | U23: 11712.0235 | V23: 49.0359 | W23: 13.62108333 | AC23: 0
A24: 14 | O24: 8156.276985 | P24: 34.1487 | Q24: 9.48575 | R24: 9036.591319 | S24: 37.8344 | T24: 10.50955556 | U24: 11712.0235 | V24: 49.0359 | W24: 13.62108333 | AC24: 0
A25: 15 | B25: 94.1286 | C25: 2.5376 | D25: 0.6343 | E25: 0.0668 | F25: 0.0934 | G25: 0.0045 | H25: 0.0218 | I25: 0.0187 | J25: 0.0313 | K25: 0.0134 | L25: 2.187 | M25: 0.2626 | N25: 0.7094 | O25: =P25*238.8459 -> 8075.117149 | P25: 33.8089 | Q25: =P25/3.6 -> 9.391361111 | R25: =S25*238.8459 -> 8949.627527 | S25: 37.4703 | T25: =S25/3.6 -> 10.40841667 | U25: =V25/0.0041868 -> 11661.88975 | V25: 48.826 | W25: =V25/3.6 -> 13.56277778 | AC25: 100 | AD25: ОК
A26: 16 | O26: =P26*238.8459 -> 8075.117149 | P26: 33.8089 | Q26: =P26/3.6 -> 9.391361111 | R26: =S26*238.8459 -> 8949.627527 | S26: 37.4703 | T26: =S26/3.6 -> 10.40841667 | U26: =V26/0.0041868 -> 11661.88975 | V26: 48.826 | W26: =V26/3.6 -> 13.56277778 | AC26: 0
A27: 17 | O27: 8075.117149 | P27: 33.8089 | Q27: 9.391361111 | R27: 8949.627527 | S27: 37.4703 | T27: 10.40841667 | U27: 11661.88975 | V27: 48.826 | W27: 13.56277778 | AC27: 0
A28: 18 | O28: 8075.117149 | P28: 33.8089 | Q28: 9.391361111 | R28: 8949.627527 | S28: 37.4703 | T28: 10.40841667 | U28: 11661.88975 | V28: 48.826 | W28: 13.56277778 | AC28: 0
A29: 19 | O29: 8075.117149 | P29: 33.8089 | Q29: 9.391361111 | R29: 8949.627527 | S29: 37.4703 | T29: 10.40841667 | U29: 11661.88975 | V29: 48.826 | W29: 13.56277778 | AC29: 0
A30: 20 | O30: 8075.117149 | P30: 33.8089 | Q30: 9.391361111 | R30: 8949.627527 | S30: 37.4703 | T30: 10.40841667 | U30: 11661.88975 | V30: 48.826 | W30: 13.56277778 | AC30: 0 | AD30: =IF(AC30=100,"ОК"," ") -> 
A31: 21 | O31: 8075.117149 | P31: 33.8089 | Q31: 9.391361111 | R31: 8949.627527 | S31: 37.4703 | T31: 10.40841667 | U31: 11661.88975 | V31: 48.826 | W31: 13.56277778 | AC31: 0
A32: 22 | O32: 8075.117149 | P32: 33.8089 | Q32: 9.391361111 | R32: 8949.627527 | S32: 37.4703 | T32: 10.40841667 | U32: 11661.88975 | V32: 48.826 | W32: 13.56277778 | AC32: 0
A33: 23 | B33: 94.6962 | C33: 2.6321 | D33: 0.6725 | E33: 0.0838 | F33: 0.0941 | G33: 0.0021 | H33: 0.0196 | I33: 0.0152 | J33: 0.0197 | K33: 0.0122 | L33: 1.5091 | M33: 0.2434 | N33: 0.7065 | O33: =P33*238.8459 -> 8139.414465 | P33: 34.0781 | Q33: =P33/3.6 -> 9.466138889 | R33: =S33*238.8459 -> 9020.636413 | S33: 37.7676 | T33: =S33/3.6 -> 10.491 | U33: =V33/0.0041868 -> 11777.77778 | V33: 49.3112 | W33: =V33/3.6 -> 13.69755556 | AC33: 100 | AD33: =IF(AC33=100,"ОК"," ") -> ОК
A34: 24 | O34: =P34*238.8459 -> 8139.414465 | P34: 34.0781 | Q34: =P34/3.6 -> 9.466138889 | R34: =S34*238.8459 -> 9020.636413 | S34: 37.7676 | T34: =S34/3.6 -> 10.491 | U34: =V34/0.0041868 -> 11777.77778 | V34: 49.3112 | W34: =V34/3.6 -> 13.69755556 | AC34: 0
A35: 25 | O35: 8139.414465 | P35: 34.0781 | Q35: 9.466138889 | R35: 9020.636413 | S35: 37.7676 | T35: 10.491 | U35: 11777.77778 | V35: 49.3112 | W35: 13.69755556 | AC35: 0
A36: 26 | O36: 8139.414465 | P36: 34.0781 | Q36: 9.466138889 | R36: 9020.636413 | S36: 37.7676 | T36: 10.491 | U36: 11777.77778 | V36: 49.3112 | W36: 13.69755556 | AC36: 0
A37: 27 | O37: 8139.414465 | P37: 34.0781 | Q37: 9.466138889 | R37: 9020.636413 | S37: 37.7676 | T37: 10.491 | U37: 11777.77778 | V37: 49.3112 | W37: 13.69755556 | AC37: 0
A38: 28 | O38: 8139.414465 | P38: 34.0781 | Q38: 9.466138889 | R38: 9020.636413 | S38: 37.7676 | T38: 10.491 | U38: 11777.77778 | V38: 49.3112 | W38: 13.69755556 | AC38: 0
A39: 29 | AC39: 0
A40: 30 | AC40: 0
A41: 31 | AC41: 0
A42: Рівень одоризації відповідає чинним нормативним документам | O42: =SUMPRODUCT(O11:O41,' розрахунок'!E7:E37)/' розрахунок'!E38 -> 8137.520134 | P42: =SUMPRODUCT(P11:P41,' розрахунок'!E7:E37)/' розрахунок'!E38 -> 34.07016882 | Q42: =SUMPRODUCT(Q11:Q41,' розрахунок'!E7:E37)/' розрахунок'!E38 -> 9.463935783 | R42: =SUMPRODUCT(R11:R41,' розрахунок'!E7:E37)/' розрахунок'!E38 -> 9016.80701 | S42: =SUMPRODUCT(S11:S41,' розрахунок'!E7:E37)/' розрахунок'!E38 -> 37.75156706 | T42: =SUMPRODUCT(T11:T41,' розрахунок'!E7:E37)/' розрахунок'!E38 -> 10.4865464
H43: Середньозважене значення теплоти згоряння:
B46: Начальник управління Сєвєродонецького ЛВУМГ Головко Ю.О.
C47: Підрозділу підприємства, якому підпорядкована лабораторія | O47: прізвище | R47: підпис | V47: дата
B48: Інженер ІІ кат.вимірювальної хіміко-аналітичної лабораторії Єрьоменко М.О.
C49: Лабораторія, де здійснювалось вимірювання газу | O49: прізвище | R49: підпис | V49: дата
B50: Начальник служби метрології Ісаєв В.С.
C51: Підрозділу, відповідального за облік газу за маршрутом | O51: прізвище | R51: підпис | V51: дата

Sheet розрахунок (hidden)
A2: Додаток до Паспорту фізико-хімічних показників природного газу по маршруту № 689
A4: Число місяця | B4: Теплота згоряння вища, МДж/м3 | C4: Луганська область | E4: Загальний обсяг газу, м3
C5: Обсяг газу переданого за добу, м3
C6: ПрАТ" АЗОТ" | D6: ГРС м. Сєвєродонецьк СХК-1
A7: 1 | B7: 37.8377 | C7: 141785.05 | D7: 507086.44 | E7: =D7+C7 -> 648871.49
A8: 2 | B8: 37.8377 | C8: 146914.2 | D8: 573260.13 | E8: 720174.33
A9: 3 | B9: 37.8505 | C9: 133471.81 | D9: 616233.94 | E9: 749705.75
A10: 4 | B10: 37.8505 | C10: 152716.64 | D10: 619519.81 | E10: 772236.45
A11: 5 | B11: 37.8505 | C11: 199357.45 | D11: 545486.38 | E11: 744843.83
A12: 6 | B12: 37.8505 | C12: 222420.3 | D12: 631608.31 | E12: 854028.61
A13: 7 | B13: 37.8505 | C13: 206890.36 | D13: 640936.19 | E13: 847826.55
A14: 8 | B14: 37.8505 | C14: 203762.94 | D14: 647855.75 | E14: 851618.69
A15: 9 | B15: 37.8344 | C15: 202280.33 | D15: 639604 | E15: 841884.33
A16: 10 | B16: 37.8344 | C16: 184946.83 | D16: 485015.81 | E16: 669962.64
A17: 11 | B17: 37.8344 | C17: 168948.8 | D17: 402094.56 | E17: 571043.36
A18: 12 | B18: 37.8344 | C18: 164614.06 | D18: 400711.03 | E18: 565325.09
A19: 13 | B19: 37.8344 | C19: 167703.2 | D19: 400978.63 | E19: 568681.83
A20: 14 | B20: 37.8344 | C20: 185338.2 | D20: 406739 | E20: 592077.2
A21: 15 | B21: 37.4703 | C21: 175689.36 | D21: 386758.03 | E21: 562447.39
A22: 16 | B22: 37.4703 | C22: 181231.97 | D22: 380294.25 | E22: 561526.22
A23: 17 | B23: 37.4703 | C23: 166177.06 | D23: 380343.41 | E23: 546520.47
A24: 18 | B24: 37.4703 | C24: 145282.7 | D24: 240578.14 | E24: 385860.84
A25: 19 | B25: 37.4703 | C25: 142244.52 | D25: 207053.22 | E25: 349297.74
A26: 20 | B26: 37.4703 | C26: 123619.39 | D26: 201772.5 | E26: 325391.89
A27: 21 | B27: 37.4703 | C27: 119161.61 | D27: 193111.36 | E27: 312272.97
A28: 22 | B28: 37.4703 | C28: 119980.09 | D28: 184349.34 | E28: 304329.43
A29: 23 | B29: 37.7676 | C29: 122383.69 | D29: 188105.27 | E29: 310488.96
A30: 24 | B30: 37.7676 | C30: 134567.28 | D30: 186446.52 | E30: 321013.8
A31: 25 | B31: 37.7676 | C31: 142300.88 | D31: 187775.59 | E31: 330076.47
A32: 26 | B32: 37.7676 | C32: 141813.81 | D32: 180057.64 | E32: 321871.45
A33: 27 | B33: 37.7676 | C33: 157713.75 | D33: 186310.53 | E33: 344024.28
A34: 28 | B34: 37.7676 | C34: 140125.77 | D34: 182869.98 | E34: 322995.75
A35: 29
A36: 30
A37: 31
A38: Загальний обсяг газу, м3 | C38: =SUM(C7:C37) -> 4493442.05 | D38: =SUM(D7:D37) -> 10802955.76 | E38: =SUM(E7:E37) -> 15296397.81
A39: Енергія, МДж | C39: =SUMPRODUCT(B7:B37,C7:C37) -> 169542377.4 | D39: =SUMPRODUCT(B7:B37,D7:D37) -> 407920610.2 | E39: =SUMPRODUCT(B7:B37,E7:E37) -> 577462987.6
A40: Теплота згоряння (середньозважене значення за місяць), МДж/м³ | C40: =C39/C38 -> 37.7310702 | D40: =D39/D38 -> 37.76009263 | E40: =E39/E38 -> 37.75156706
A41: Теплота згоряння (середньозважене значення за місяць), ккал/м³ | C41: =C40*238.8459 -> 9011.911419 | D41: =C40*238.8459 -> 9011.911419 | E41: =E40*238.8459 -> 9016.80701
A42: Теплота згоряння (середньозважене значення за місяць), кВт*год./м³ | C42: =C40/3.6 -> 10.48085283 | D42: =C40/3.6 -> 10.48085283 | E42: =E40/3.6 -> 10.4865464

Sheet додаток
A2: Додаток до Паспорту фізико-хімічних показників природного газу №689
A4: Область | B4: ГРС, прямий споживач | C4: Cередньозважене значення вищої теплоти згоряння
C5: МДж/м³ | D5: ккал/м³ | E5: кВт*год./м³
A6: Луганська область | B6: ПрАТ" АЗОТ" | C6: 37.73 | D6: 9012 | E6: 10.48
B7: ГРС м. Сєвєродонецьк СХК-1 | C7: 37.76 | D7: 9012 | E7: 10.48
A8: Середньозважене значення вищої теплоти згоряння по маршруту № 689 | C8: 37.75 | D8: 9012 | E8: 10.48
A12: Начальник управління Сєвєродонецького ЛВУМГ Головко Ю.О.
A13: Підрозділу підприємства, якому підпорядкована лабораторія | D13: прізвище | E13: підпис | F13: дата
A14: Інженер ІІ кат.вимірювальної хіміко-аналітичної лабораторії Єрьоменко М.О.
A15: Лабораторія, де здійснювалось вимірювання газу | D15: прізвище | E15: підпис | F15: дата
A16: Начальник служби метрології Ісаєв В.С.
A17: Підрозділу, відповідального за облік газу за маршрутом | D17: прізвище | E17: підпис | F17: дата

Sheet variablesList (hidden)
A1: 3 | B1: x:\gaysin | C1: 10, 11, 24, 25, 127, 128, 132, 180, 207, 215 | D1: x:\
B2: x:\Illinci
B3: x:\Talne
